lending/lending_fUSD_20240110
["ID","MTS","AMOUNT","RATE_DAILY","PERIOD"]
[311057289,1704891106372,-1066.0,0.00031506,2]
[311057290,1704891106383,-3383.46,0.00031506,2]
[311057291,1704891106395,-556.19,0.00031506,2]
[311057292,1704891106405,-320.65710193,0.00031506,2]
[311057293,1704891106415,-1414.02,0.00031506,2]
[311057294,1704891106425,-1721.84,0.00031506,2]
[311057295,1704891106436,-506.73,0.00031506,2]
[311057296,1704891106447,-6948.27,0.00031506,2]
[311057297,1704891106457,-500.0,0.00031506,2]
[311057298,1704891106472,-787.87,0.00031506,2]
[311057299,1704891106482,-875.41,0.00031506,2]
[311057300,1704891106492,-905.55,0.00031506,2]
[311057301,1704891106502,-1113.97,0.00031506,2]
[311057302,1704891106511,-1850.44,0.00031506,2]
[311057303,1704891106521,-2699.57,0.00031506,2]
[311057304,1704891106531,-13325.5,0.00031506,2]
[311057305,1704891106541,-622.97,0.00031506,2]
[311057306,1704891106551,-975.55,0.00031506,2]
[311057307,1704891106561,-816.51,0.00031506,2]
[311057308,1704891106571,-602.85,0.00031506,2]
[311057309,1704891106581,-1571.82,0.00031506,2]
[311057310,1704891106591,-500.0,0.00031506,2]
[311057311,1704891106601,-1172.85,0.00031506,2]
[311057312,1704891106614,-1902.92,0.00031506,2]
[311057313,1704891106623,-1103.19,0.00031506,2]
[311057314,1704891106634,-1029.72,0.00031506,2]
[311057315,1704891106647,-551.04,0.00031506,2]
[311057316,1704891106657,-500.0,0.00031506,2]
[311057317,1704891106666,-719.09,0.00031506,2]
[311057318,1704891106675,-500.0,0.00031506,2]
[311057319,1704891106685,-6582.51,0.00031506,2]
[311057320,1704891106695,-816.66,0.00031506,2]
[311057321,1704891106705,-4042.49,0.00031506,2]
[311057322,1704891106715,-711.14,0.00031506,2]
[311057323,1704891106724,-500.0,0.00031506,2]
[311057324,1704891106734,-750.11,0.00031506,2]
[311057325,1704891106743,-500.0,0.00031506,2]
[311057326,1704891106754,-3983.8,0.00031506,2]
[311057327,1704891106764,-541.81,0.00031506,2]
[311057328,1704891106774,-548.8,0.00031506,2]
[311057329,1704891106783,-3506.94,0.00031506,2]
[311057330,1704891106793,-1032.31,0.00031506,2]
[311057331,1704891106803,-1408.06,0.00031506,2]
[311057332,1704891106812,-1081.29,0.00031506,2]
[311057333,1704891106821,-1527.61,0.00031506,2]
[311057334,1704891106831,-8785.85,0.00031506,2]
[311057335,1704891106841,-660.7,0.00031506,2]
[311057336,1704891106850,-1142.75,0.00031506,2]
[311057337,1704891106859,-2858.46,0.00031506,2]
[311057338,1704891106868,-2768.41,0.00031506,2]
[311057339,1704891106878,-4131.39,0.00031506,2]
[311057340,1704891106890,-2292.41,0.00031506,2]
[311057341,1704891106900,-746.91,0.00031506,2]
[311057342,1704891106910,-2876.26,0.00031506,2]
[311057343,1704891106919,-1039.47,0.00031506,2]
[311057344,1704891106928,-2634.97,0.00031506,2]
[311057345,1704891106938,-2170.96,0.00031506,2]
[311057346,1704891106948,-602.26,0.00031506,2]
[311057347,1704891106957,-1716.45,0.00031506,2]
[311057348,1704891106967,-3670.86,0.00031506,2]
[311057349,1704891106977,-500.0,0.00031506,2]
[311057350,1704891106986,-500.0,0.00031506,2]
[311057351,1704891106996,-500.0,0.00031506,2]
[311057352,1704891107006,-500.0,0.00031506,2]
[311057353,1704891107016,-614.41,0.00031506,2]
[311057354,1704891107026,-2195.0,0.00031506,2]
[311057355,1704891107035,-1673.5,0.00031506,2]
[311057356,1704891107045,-500.0,0.00031506,2]
[311057357,1704891107054,-2390.42,0.00031506,2]
[311057358,1704891107064,-5390.38,0.00031506,2]
[311057359,1704891107074,-3651.48,0.00031506,2]
[311057360,1704891107083,-38163.08,0.00031506,2]
[311057361,1704891107094,-1000.0,0.00031506,2]
[311057362,1704891107104,-500.0,0.00031506,2]
[311057363,1704891107113,-1305.31,0.00031506,2]
[311057364,1704891107123,-1396.89,0.00031506,2]
[311057365,1704891107133,-1467.77,0.00031506,2]
[311057366,1704891107147,-500.0,0.00031506,2]
[311057367,1704891107157,-14627.59,0.00031506,2]
[311057368,1704891107167,-1697.53,0.00031506,2]
[311057369,1704891107178,-2605.66,0.00031506,2]
[311057370,1704891107188,-500.0,0.00031506,2]
[311057371,1704891107198,-601.21,0.00031506,2]
[311057372,1704891107209,-1698.7,0.00031506,2]
[311057373,1704891107219,-3381.31,0.00031506,2]
[311057374,1704891107229,-3094.77,0.00031506,2]
[311057375,1704891107239,-607.81,0.00031506,2]
[311057376,1704891107250,-999.48,0.00031506,2]
[311057377,1704891107262,-30990.15,0.00031506,2]
[311057378,1704891107273,-2892.8,0.00031506,2]
[311057379,1704891107284,-500.0,0.00031506,2]
[311057380,1704891107294,-5290.12,0.00031506,2]
[311057381,1704891107307,-500.0,0.00031506,2]
[311057382,1704891107317,-1578.38,0.00031506,2]
[311057383,1704891107331,-642.94,0.00031506,2]
[311057384,1704891107342,-840.86,0.00031506,2]
[311057385,1704891107353,-2017.0,0.00031506,2]
[311057386,1704891107366,-500.0,0.00031506,2]
[311057387,1704891107377,-4827.58,0.00031506,2]
[311057388,1704891107391,-3994.86,0.00031506,2]
[311057389,1704891107402,-2602.05,0.00031506,2]
[311057390,1704891107413,-1048.25,0.00031506,2]
[311057391,1704891107424,-1522.78,0.00031506,2]
[311057392,1704891107435,-1904.14,0.00031506,2]
[311057393,1704891107446,-500.0,0.00031506,2]
[311057394,1704891107458,-1424.2,0.00031506,2]
[311057395,1704891107469,-539.92,0.00031506,2]
[311057396,1704891107479,-1050.78,0.00031506,2]
[311057397,1704891107489,-500.0,0.00031506,2]
[311057398,1704891107500,-5503.03,0.00031506,2]
[311057399,1704891107510,-2260.26,0.00031506,2]
[311057400,1704891107521,-821.97,0.00031506,2]
[311057401,1704891107531,-753.71,0.00031506,2]
[311057402,1704891107542,-1838.58,0.00031506,2]
[311057403,1704891107552,-901.27,0.00031506,2]
[311057404,1704891107563,-782.96,0.00031506,2]
[311057405,1704891107573,-6384.72,0.00031506,2]
[311057406,1704891107583,-627.49,0.00031506,2]
[311057407,1704891107594,-2196.77,0.00031506,2]
[311057408,1704891107603,-500.0,0.00031506,2]
[311057409,1704891107613,-632.63,0.00031506,2]
[311057410,1704891107623,-599.02,0.00031506,2]
[311057411,1704891107634,-864.41,0.00031506,2]
[311057412,1704891107647,-1516.0,0.00031506,2]
[311057413,1704891107657,-2505.88,0.00031506,2]
[311057414,1704891107667,-6045.31,0.00031506,2]
[311057415,1704891107677,-3365.53,0.00031506,2]
[311057416,1704891107686,-720.09,0.00031506,2]
[311057417,1704891107696,-500.0,0.00031506,2]
[311057418,1704891107705,-1765.01,0.00031506,2]
[311057419,1704891107715,-870.91,0.00031506,2]
[311057420,1704891107724,-927.81,0.00031506,2]
[311057421,1704891107734,-2120.01,0.00031506,2]
[311057422,1704891107743,-490.90197429,0.00031506,2]
[311057423,1704891107754,-767.25,0.00031506,2]
[311057424,1704891107764,-868.01,0.00031506,2]
[311057425,1704891107773,-1570.4,0.00031506,2]
[311057426,1704891107784,-500.0,0.00031506,2]
[311057427,1704891107794,-2584.72,0.00031506,2]
[311057428,1704891107804,-5200.93,0.00031506,2]
[311057429,1704891107814,-1450.1,0.00031506,2]
[311057430,1704891107825,-1551.81,0.00031506,2]
[311057431,1704891107836,-602.13,0.00031506,2]
[311057432,1704891107846,-754.64,0.00031506,2]
[311057433,1704891107856,-3512.62,0.00031506,2]
[311057434,1704891107867,-500.0,0.00031506,2]
[311057435,1704891107877,-500.0,0.00031506,2]
[311057436,1704891107889,-1650.34,0.00031506,2]
[311057437,1704891107899,-306.7,0.00031506,2]
[311057438,1704891107909,-813.75,0.00031506,2]
[311057439,1704891107919,-2261.23,0.00031506,2]
[311057440,1704891107929,-7021.11,0.00031506,2]
[311057441,1704891107939,-4708.93,0.00031506,2]
[311057442,1704891107949,-854.64,0.00031506,2]
[311057443,1704891107958,-2547.75,0.00031506,2]
[311057444,1704891107968,-1487.52,0.00031506,2]
[311057445,1704891107978,-1095.817739,0.00031506,7]
[311057446,1704891107987,-1095.817739,0.00031506,7]
[311057447,1704891107996,-1095.817739,0.00031506,7]
[311057448,1704891108006,-1095.817742,0.00031506,7]
[311057449,1704891108015,-150.0,0.00031507,2]
[311057450,1704891108024,-150.0,0.00031507,2]
[311057451,1704891108034,-150.0,0.00031507,2]
[311057452,1704891108043,-305.21,0.00031507,2]
[311057453,1704891108052,-247.31,0.00031561,2]
[311057454,1704891108062,-152.0,0.00031587,3]
[311057455,1704891108072,-836.0,0.000316,2]
[311057456,1704891108081,-420.682381,0.000316,2]
[311057457,1704891108092,-343.0,0.000316,2]
[311057458,1704891108101,-150.0,0.000316,4]
[311057459,1704891108110,-8563.99992906,0.00031605,3]
[311057460,1704891108119,-2000.0,0.00031614,2]
[311057461,1704891108129,-2000.0,0.00031623,2]
[311057462,1704891108142,-200.0,0.00031623,2]
[311057463,1704891108152,-2000.0,0.00031623,2]
[311057464,1704891108162,-200.0,0.00031623,2]
[311057465,1704891108172,-2000.0,0.00031623,2]
[311057466,1704891108182,-200.0,0.00031623,2]
[311057467,1704891108192,-647.97,0.0003167,2]
[311057468,1704891108202,-500.0,0.00031702,2]
[311057469,1704891108212,-247.31,0.00031714,2]
[311057470,1704891108222,-1371.67914973,0.00031734,2]
[311057471,1704891108232,-2779.6256843,0.00031778,2]
[311057472,1704891108242,-2886.1406285,0.00031778,2]
[311057473,1704891108251,-150.0,0.00031779,2]
[311057474,1704891108261,-8563.99992906,0.0003178,3]
[311057475,1704891108271,-1305.2,0.0003178,2]
[311057476,1704891108281,-1164.78,0.0003178,2]
[311057477,1704891108291,-500.0,0.0003178,2]
[311057478,1704891108301,-632.81,0.0003178,2]
[311057479,1704891108311,-691.12,0.0003178,2]
[311057480,1704891108322,-610.62,0.0003178,2]
[311057481,1704891108334,-570.49,0.0003178,2]
[311057482,1704891108344,-648.06,0.0003178,2]
[311057483,1704891108355,-371.46651147,0.0003178,2]
[311057484,1704891108365,-500.0,0.0003178,2]
[311057485,1704891108374,-528.22,0.0003178,2]
[311057486,1704891108384,-500.0,0.0003178,2]
[311057487,1704891108396,-500.0,0.0003178,2]
[311057488,1704891108406,-613.28,0.0003178,2]
[311057489,1704891108416,-500.0,0.0003178,2]
[311057490,1704891108426,-328.28186595,0.0003178,2]
[311057491,1704891108436,-500.0,0.0003178,2]
[311057492,1704891108446,-606.62,0.0003178,2]
[311057493,1704891108456,-1296.75,0.0003178,2]
[311057494,1704891108466,-500.0,0.0003178,2]
[311057495,1704891108476,-549.61,0.0003178,2]
[311057496,1704891108486,-539.9,0.0003178,2]
[311057497,1704891108496,-500.0,0.0003178,2]
[311057498,1704891108506,-500.0,0.0003178,2]
[311057499,1704891108515,-554.24,0.0003178,2]
[311057500,1704891108525,-500.0,0.0003178,2]
[311057501,1704891108535,-500.0,0.0003178,2]
[311057502,1704891108545,-604.42,0.0003178,2]
[311057503,1704891108555,-597.45,0.0003178,2]
[311057504,1704891108565,-500.0,0.0003178,2]
[311057505,1704891108574,-500.0,0.0003178,2]
[311057506,1704891108584,-715.45,0.0003178,2]
[311057507,1704891108594,-731.09,0.0003178,2]
[311057508,1704891108603,-500.0,0.0003178,2]
[311057509,1704891108614,-767.17,0.0003178,2]
[311057510,1704891108624,-1110.47,0.0003178,2]
[311057511,1704891108633,-500.0,0.0003178,2]
[311057512,1704891108646,-234.99172506,0.0003178,2]
[311057513,1704891108656,-500.0,0.0003178,2]
[311057514,1704891108665,-500.0,0.0003178,2]
[311057515,1704891108675,-500.0,0.0003178,2]
[311057516,1704891108685,-914.12,0.0003178,2]
[311057517,1704891108695,-500.0,0.0003178,2]
[311057518,1704891108705,-500.0,0.0003178,2]
[311057519,1704891108715,-500.0,0.0003178,2]
[311057520,1704891108725,-500.0,0.0003178,2]
[311057521,1704891108735,-500.0,0.0003178,2]
[311057522,1704891108745,-500.0,0.0003178,2]
[311057523,1704891108755,-843.45,0.0003178,2]
[311057524,1704891108765,-540.71,0.0003178,2]
[311057525,1704891108775,-500.0,0.0003178,2]
[311057526,1704891108784,-833.64,0.0003178,2]
[311057527,1704891108794,-500.0,0.0003178,2]
[311057528,1704891108804,-325.07800685,0.0003178,2]
[311057529,1704891108813,-1000.44275479,0.0003178,2]
[311057530,1704891108823,-500.0,0.0003178,2]
[311057531,1704891108832,-919.36,0.0003178,2]
[311057532,1704891108842,-500.0,0.0003178,2]
[311057533,1704891108852,-500.0,0.0003178,2]
[311057534,1704891108861,-500.0,0.0003178,2]
[311057535,1704891108871,-780.81,0.0003178,4]
[311057536,1704891108880,-500.0,0.0003178,2]
[311057537,1704891108892,-673.2,0.0003178,2]
[311057538,1704891108902,-549.17,0.0003178,2]
[311057539,1704891108911,-500.0,0.0003178,2]
[311057540,1704891108921,-592.78,0.0003178,10]
[311057541,1704891108930,-929.48,0.0003178,2]
[311057542,1704891108940,-500.0,0.0003178,2]
[311057543,1704891108950,-783.37,0.0003178,2]
[311057544,1704891108960,-500.0,0.0003178,2]
[311057545,1704891108970,-526.95,0.0003178,2]
[311057546,1704891108981,-500.0,0.0003178,2]
[311057547,1704891108991,-718.34,0.0003178,2]
[311057548,1704891109001,-500.0,0.0003178,2]
[311057549,1704891109011,-796.39,0.0003178,2]
[311057550,1704891109021,-500.0,0.0003178,2]
[311057551,1704891109031,-516.97,0.0003178,2]
[311057552,1704891109041,-603.93,0.0003178,2]
[311057553,1704891109279,-953.36,0.0003178,2]
[311057554,1704891109297,-595.36,0.0003178,2]
[311057555,1704891109309,-999.87,0.0003178,2]
[311057556,1704891109320,-799.61,0.0003178,2]
[311057557,1704891109333,-500.0,0.0003178,2]
[311057558,1704891109343,-679.43,0.0003178,2]
[311057559,1704891109353,-545.66,0.0003178,2]
[311057560,1704891109363,-911.61,0.0003178,2]
[311057561,1704891109373,-608.6,0.0003178,2]
[311057562,1704891109383,-500.0,0.0003178,2]
[311057563,1704891109395,-500.0,0.0003178,2]
[311057564,1704891109405,-500.0,0.0003178,2]
[311057565,1704891109415,-528.0,0.0003178,2]
[311057566,1704891109425,-717.61,0.0003178,2]
[311057567,1704891109434,-668.27,0.0003178,2]
[311057568,1704891109445,-500.0,0.0003178,2]
[311057569,1704891109455,-603.62038112,0.0003178,2]
[311057570,1704891109466,-922.19,0.0003178,2]
[311057571,1704891109476,-300.0,0.0003178,2]
[311057572,1704891109486,-500.0,0.0003178,2]
[311057573,1704891109497,-500.0,0.0003178,2]
[311057574,1704891109507,-500.0,0.0003178,2]
[311057575,1704891109518,-500.0,0.0003178,2]
[311057576,1704891109529,-500.0,0.0003178,2]
[311057577,1704891109539,-1150.48,0.0003178,2]
[311057578,1704891109550,-500.0,0.0003178,2]
[311057579,1704891109560,-500.0,0.0003178,2]
[311057580,1704891109570,-500.0,0.0003178,2]
[311057581,1704891109580,-856.23,0.0003178,2]
[311057582,1704891109591,-500.0,0.0003178,2]
[311057583,1704891109601,-500.0,0.0003178,2]
[311057584,1704891109612,-943.83,0.0003178,2]
[311057585,1704891109622,-677.16,0.0003178,2]
[311057586,1704891109632,-1357.7,0.0003178,2]
[311057587,1704891109647,-944.54,0.0003178,2]
[311057588,1704891109657,-819.95,0.0003178,2]
[311057589,1704891109666,-613.7,0.0003178,2]
[311057590,1704891109676,-845.23,0.0003178,2]
[311057591,1704891109685,-500.0,0.0003178,2]
[311057592,1704891109695,-1144.78,0.0003178,2]
[311057593,1704891109705,-572.57,0.0003178,2]
[311057594,1704891109715,-523.04,0.0003178,2]
[311057595,1704891109726,-500.0,0.0003178,2]
[311057596,1704891109736,-981.88,0.0003178,2]
[311057597,1704891109746,-500.0,0.0003178,2]
[311057598,1704891109756,-500.0,0.0003178,2]
[311057599,1704891109767,-500.0,0.0003178,2]
[311057600,1704891109777,-500.0,0.0003178,2]
[311057601,1704891109787,-500.0,0.0003178,2]
[311057602,1704891109797,-1009.3,0.0003178,2]
[311057603,1704891109807,-500.0,0.0003178,2]
[311057604,1704891109817,-804.49,0.0003178,2]
[311057605,1704891109827,-500.0,0.0003178,2]
[311057606,1704891109837,-679.35,0.0003178,2]
[311057607,1704891109848,-626.97,0.0003178,2]
[311057608,1704891109858,-688.65,0.0003178,2]
[311057609,1704891109868,-1228.41,0.0003178,2]
[311057610,1704891109879,-835.39,0.0003178,2]
[311057611,1704891109893,-500.0,0.0003178,2]
[311057612,1704891109903,-567.03,0.0003178,2]
[311057613,1704891109914,-664.11,0.0003178,2]
[311057614,1704891109924,-699.18,0.0003178,2]
[311057615,1704891109935,-729.83,0.0003178,2]
[311057616,1704891109945,-500.0,0.0003178,2]
[311057617,1704891109954,-574.64,0.0003178,2]
[311057618,1704891109964,-847.62,0.0003178,2]
[311057619,1704891109974,-500.0,0.0003178,2]
[311057620,1704891109984,-1277.67,0.0003178,2]
[311057621,1704891109994,-755.08,0.0003178,2]
[311057622,1704891110004,-1281.13,0.0003178,2]
[311057623,1704891110014,-500.0,0.0003178,2]
[311057624,1704891110025,-667.72,0.0003178,2]
[311057625,1704891110035,-1050.74,0.0003178,2]
[311057626,1704891110045,-1129.59,0.0003178,2]
[311057627,1704891110056,-500.0,0.0003178,2]
[311057628,1704891110066,-1299.52,0.0003178,2]
[311057629,1704891110076,-500.0,0.0003178,2]
[311057630,1704891110087,-500.0,0.0003178,2]
[311057631,1704891110098,-500.0,0.0003178,2]
[311057632,1704891110109,-665.14,0.0003178,2]
[311057633,1704891110120,-1462.15,0.0003178,2]
[311057634,1704891110130,-883.1,0.0003178,2]
[311057635,1704891110143,-736.72,0.0003178,2]
[311057636,1704891110153,-932.0,0.0003178,2]
[311057637,1704891110163,-500.0,0.0003178,2]
[311057638,1704891110173,-933.85,0.0003178,2]
[311057639,1704891110183,-715.55,0.0003178,2]
[311057640,1704891110193,-1106.31,0.0003178,2]
[311057641,1704891110203,-500.0,0.0003178,2]
[311057642,1704891110213,-500.0,0.0003178,2]
[311057643,1704891110223,-616.84,0.0003178,2]
[311057644,1704891110234,-989.02,0.0003178,2]
[311057645,1704891110244,-500.0,0.0003178,2]
[311057646,1704891110254,-500.0,0.0003178,2]
[311057647,1704891110264,-1108.12,0.0003178,2]
[311057648,1704891110274,-1195.8,0.0003178,2]
[311057649,1704891110284,-1806.82,0.0003178,2]
[311057650,1704891110295,-915.35,0.0003178,2]
[311057651,1704891110306,-1387.71,0.0003178,2]
[311057652,1704891110316,-1503.57,0.0003178,2]
[311057653,1704891110327,-556.89,0.0003178,2]
[311057654,1704891110337,-728.24,0.0003178,2]
[311057655,1704891110347,-1262.12,0.0003178,2]
[311057656,1704891110358,-749.59,0.0003178,2]
[311057657,1704891110368,-500.0,0.0003178,2]
[311057658,1704891110379,-500.0,0.0003178,2]
[311057659,1704891110392,-968.99,0.0003178,2]
[311057660,1704891110402,-1148.53,0.0003178,2]
[311057661,1704891110413,-201.94589277,0.0003178,2]
[311057662,1704891110423,-500.0,0.0003178,2]
[311057663,1704891110433,-1486.97,0.0003178,2]
[311057664,1704891110444,-1273.18,0.0003178,2]
[311057665,1704891110455,-500.0,0.0003178,2]
[311057666,1704891110465,-1334.19,0.0003178,2]
[311057667,1704891110476,-500.0,0.0003178,2]
[311057668,1704891110486,-500.0,0.0003178,2]
[311057669,1704891110497,-810.04,0.0003178,2]
[311057670,1704891110508,-945.46,0.0003178,2]
[311057671,1704891110519,-884.9,0.0003178,2]
[311057672,1704891110529,-500.0,0.0003178,2]
[311057673,1704891110538,-566.84,0.0003178,2]
[311057674,1704891110549,-500.0,0.0003178,2]
[311057675,1704891110559,-500.0,0.0003178,2]
[311057676,1704891110569,-659.65,0.0003178,2]
[311057677,1704891110579,-1698.48,0.0003178,2]
[311057678,1704891110589,-1658.69,0.0003178,2]
[311057679,1704891110599,-1894.62,0.0003178,2]
[311057680,1704891110609,-530.43,0.0003178,2]
[311057681,1704891110620,-648.28,0.0003178,2]
[311057682,1704891110630,-635.25,0.0003178,2]
[311057683,1704891110643,-716.26,0.0003178,2]
[311057684,1704891110653,-500.0,0.0003178,2]
[311057685,1704891110663,-500.0,0.0003178,2]
[311057686,1704891110674,-659.2,0.0003178,2]
[311057687,1704891110684,-1075.0,0.0003178,2]
[311057688,1704891110694,-912.69,0.0003178,2]
[311057689,1704891110703,-500.0,0.0003178,2]
[311057690,1704891110713,-500.0,0.0003178,2]
[311057691,1704891110723,-500.0,0.0003178,2]
[311057692,1704891110734,-994.89,0.0003178,2]
[311057693,1704891110744,-536.25,0.0003178,2]
[311057694,1704891110755,-500.0,0.0003178,2]
[311057695,1704891110765,-535.04,0.0003178,2]
[311057696,1704891110775,-763.92,0.0003178,2]
[311057697,1704891110784,-1507.5,0.0003178,2]
[311057698,1704891110794,-1352.86,0.0003178,2]
[311057699,1704891110804,-500.0,0.0003178,2]
[311057700,1704891110814,-763.85,0.0003178,2]
[311057701,1704891110824,-500.0,0.0003178,2]
[311057702,1704891110834,-1058.85,0.0003178,2]
[311057703,1704891110844,-500.0,0.0003178,2]
[311057704,1704891110854,-1144.7,0.0003178,2]
[311057705,1704891110864,-592.06,0.0003178,2]
[311057706,1704891110874,-500.0,0.0003178,2]
[311057707,1704891110884,-982.41,0.0003178,2]
[311057708,1704891110896,-500.0,0.0003178,2]
[311057709,1704891110907,-500.0,0.0003178,2]
[311057710,1704891110917,-500.0,0.0003178,2]
[311057711,1704891110927,-960.45,0.0003178,2]
[311057712,1704891110937,-500.0,0.0003178,2]
[311057713,1704891110947,-1268.39,0.0003178,2]
[311057714,1704891110956,-1176.82,0.0003178,2]
[311057715,1704891110966,-500.0,0.0003178,2]
[311057716,1704891110976,-1187.57,0.0003178,2]
[311057717,1704891110986,-1591.28,0.0003178,2]
[311057718,1704891110996,-500.0,0.0003178,2]
[311057719,1704891111006,-982.23,0.0003178,2]
[311057720,1704891111017,-960.81,0.0003178,2]
[311057721,1704891111027,-500.0,0.0003178,2]
[311057722,1704891111038,-1435.01,0.0003178,2]
[311057723,1704891111049,-1012.64,0.0003178,2]
[311057724,1704891111059,-1207.08,0.0003178,2]
[311057725,1704891111069,-771.19,0.0003178,2]
[311057726,1704891111080,-1395.58,0.0003178,2]
[311057727,1704891111090,-1179.08,0.0003178,2]
[311057728,1704891111101,-1128.18,0.0003178,2]
[311057729,1704891111111,-1055.12,0.0003178,2]
[311057730,1704891111121,-524.56,0.0003178,2]
[311057731,1704891111131,-620.01,0.0003178,2]
[311057732,1704891111143,-500.0,0.0003178,2]
[311057733,1704891111154,-1511.92,0.0003178,2]
[311057734,1704891111164,-835.1,0.0003178,2]
[311057735,1704891111174,-1185.27,0.0003178,2]
[311057736,1704891111183,-1387.63,0.0003178,2]
[311057737,1704891111193,-904.42,0.0003178,2]
[311057738,1704891111204,-500.0,0.0003178,2]
[311057739,1704891111214,-525.95,0.0003178,2]
[311057740,1704891111224,-1196.53,0.0003178,2]
[311057741,1704891111235,-169.88962099,0.0003178,2]
[311057742,1704891111245,-1787.03,0.0003178,2]
[311057743,1704891111255,-674.1,0.0003178,2]
[311057744,1704891111264,-1077.63,0.0003178,2]
[311057745,1704891111273,-755.38,0.0003178,2]
[311057746,1704891111283,-500.0,0.0003178,2]
[311057747,1704891111292,-581.62,0.0003178,2]
[311057748,1704891111301,-1257.2,0.0003178,2]
[311057749,1704891111312,-1024.85,0.0003178,2]
[311057750,1704891111322,-500.0,0.0003178,2]
[311057751,1704891111335,-254.54872898,0.0003178,2]
[311057752,1704891111345,-836.69,0.0003178,2]
[311057753,1704891111356,-500.0,0.0003178,2]
[311057754,1704891111366,-525.09,0.0003178,2]
[311057755,1704891111377,-500.0,0.0003178,2]
[311057756,1704891111387,-782.38,0.0003178,2]
[311057757,1704891111398,-1749.35,0.0003178,2]
[311057758,1704891111408,-1000.33,0.0003178,2]
[311057759,1704891111418,-604.42,0.0003178,2]
[311057760,1704891111428,-500.0,0.0003178,2]
[311057761,1704891111438,-500.0,0.0003178,2]
[311057762,1704891111449,-765.38,0.0003178,2]
[311057763,1704891111460,-878.75,0.0003178,2]
[311057764,1704891111469,-679.72,0.0003178,2]
[311057765,1704891111479,-1881.36,0.0003178,2]
[311057766,1704891111489,-500.0,0.0003178,2]
[311057767,1704891111500,-500.0,0.0003178,2]
[311057768,1704891111511,-631.79,0.0003178,2]
[311057769,1704891111521,-500.0,0.0003178,7]
[311057770,1704891111531,-500.0,0.0003178,2]
[311057771,1704891111542,-500.0,0.0003178,2]
[311057772,1704891111551,-1166.65,0.0003178,2]
[311057773,1704891111561,-756.6,0.0003178,2]
[311057774,1704891111571,-2844.34,0.0003178,2]
[311057775,1704891111582,-641.96,0.0003178,2]
[311057776,1704891111592,-500.0,0.0003178,2]
[311057777,1704891111602,-1044.01,0.0003178,2]
[311057778,1704891111612,-500.0,0.0003178,2]
[311057779,1704891111622,-500.0,0.0003178,2]
[311057780,1704891111632,-1332.76,0.0003178,2]
[311057781,1704891111643,-500.0,0.0003178,2]
[311057782,1704891111654,-1244.23,0.0003178,2]
[311057783,1704891111664,-729.63,0.0003178,2]
[311057784,1704891111675,-500.0,0.0003178,2]
[311057785,1704891111685,-500.0,0.0003178,2]
[311057786,1704891111694,-757.76,0.0003178,2]
[311057787,1704891111704,-500.0,0.0003178,2]
[311057788,1704891111713,-500.0,0.0003178,2]